Cogmind - Beta 9.6 @@@ ROGUE MODE // 2020.07.11 @ 15:48:27 Player: Lyft Result: Destroyed by G-47 Trooper with Particle Gun Performance ------------- Evolutions (0) 0 Regions Visited (1) 200 Robots Destroyed (9) 45 Value Destroyed (155) 155 Prototype IDs (0) 0 Alien Tech Used (0) 0 Bonus (0) 0 TOTAL SCORE: 400 Bonus ------- None Cogmind --------- Core Integrity 0/250 Matter 273/300 Energy 100/100 System Corruption 0% Temperature Cool (9) Movement Walking (120) Location -10/Materials Parts ------- > --- POWER (1) -------- (None) > --- PROPULSION (2) --- Improved Aluminum Leg > --- UTILITY (2) ------ Small Storage Unit Light Armor Plating > --- WEAPON (2) ------- Light Assault Rifle > --- INVENTORY (6) ---- Ion Engine Light Treads Wheel Medium Matter Pod (100) Light Assault Rifle Light Assault Rifle Peak State ------------ > --- POWER ------------ Light Ion Engine > --- PROPULSION ------- Improved Aluminum Leg Improved Aluminum Leg > --- UTILITY ---------- Small Storage Unit Small Storage Unit > --- WEAPON ----------- EM Pulse Gun Assault Rifle > --- INVENTORY -------- Ion Engine Light Treads Improved Aluminum Leg Improved Aluminum Leg Wheel Medium Laser [Rating: 9] Favorites ----------- Power Light Ion Engine Engine Light Ion Engine Propulsion Improved Aluminum Leg Treads Light Treads Leg Improved Aluminum Leg Wheel Wheel Utility Small Storage Unit Storage Small Storage Unit Protection Light Armor Plating Weapon Assault Rifle Energy Gun EM Pulse Gun Ballistic Gun Assault Rifle Build | -11 -10 ------- Run | Scr Mat Slots Evolved . | . . Power . | . . Propulsion . | . . Utility . | . . Weapon . | . . Parts Attached 13 | 4 9 Power 2 | 1 1 Engine 2 | 1 1 Core . | . . Reactor . | . . Propulsion 6 | 2 4 Treads 1 | 1 . Leg 4 | . 4 Wheel 1 | 1 . Hover . | . . Flight . | . . Utility 2 | . 2 Device . | . . Storage 1 | . 1 Processor . | . . Hackware . | . . Protection 1 | . 1 Artifact . | . . Weapon 3 | 1 2 Energy Gun 2 | 1 1 Energy Cannon . | . . Ballistic Gun 1 | . 1 Ballistic Cannon . | . . Launcher . | . . Special Weapon . | . . Impact Weapon . | . . Slashing Weapon . | . . Piercing Weapon . | . . Special Melee Weapon . | . . Unidentified Prototypes . | . . Parts Lost 8 | . 8 Power 2 | . 2 Propulsion 3 | . 3 Utility . | . . Weapon 3 | . 3 Highest Loss Streak 8 | . 8 Average Slot Usage (%) 86 | . 86 Engine 12 | . 12 Leg 24 | . 24 Storage 22 | . 22 Energy Gun 11 | . 11 Ballistic Gun 12 | . 12 Naked Turns . | . . Heaviest Build 15 | 13 15 Greatest Support 26 | 10 26 Greatest Overweight (x) 3 | 1 3 Average Overweight (x) . | 1 . Largest Inventory Capacity 8 | 6 8 Average Capacity 7 | 6 7 Most Carried 7 | 6 7 Average Carried 5 | 5 5 Final Capacity 6 | 6 6 Final Carried 6 | 6 6 Class Distribution -------------------- 100% | Mutant Dominant Class ---------------- Mutant | -10/Materials Resources | -11 -10 ----------- Run | Scr Mat Matter Collected 407 | 223 184 Remotely . | . . Salvage Created 327 | 94 233 Parts 14 | 2 12 Haulers Intercepted . | . . Recyclers Shooed . | . . Parts Field Recycled . | . . Retrieved Matter . | . . Parts Self-Destructed . | . . Prevented . | . . Kills | -11 -10 ------- Run | Scr Mat Combat Hostiles Destroyed 6 | . 6 Guns 6 | . 6 Classes Destroyed 5 | 1 4 Worker 1 | . 1 Recycler 1 | 1 . Watcher 1 | . 1 Swarmer 3 | . 3 Grunt 3 | . 3 Best Kill Streak 4 | 1 4 Combat Bots Only 3 | . 3 Max Kills in Single Turn 1 | 1 1 Gunslinging . | . . Exploded . | . . Melee . | . . Uniques/NPCs Destroyed . | . . Combat | -11 -10 -------- Run | Scr Mat Damage Taken 1142 | . 1142 Core 260 | . 260 Absorbed by Shields . | . . Core Remaining (%) 100 | 100 . Volleys Fired 47 | 2 45 Largest 2 | 2 2 Hottest 70 | 60 70 Shots Fired 74 | 4 70 Gun 74 | 4 70 Cannon . | . . Launcher . | . . Special . | . . Kinetic 38 | 2 36 Thermal 10 | . 10 Explosive . | . . Electromagnetic 26 | 2 24 Robot Hit Streak 10 | 2 10 Robot Miss Streak 3 | 1 3 Penetration Max . | . . Secondary Targets 1 | . 1 Max Gunslinging Chain 1 | . 1 Shots Hit Robots 51 | 3 48 Core Hits 20 | 2 18 Critical Hits 2 | . 2 Critical Kills 1 | . 1 Critical Parts Destroyed 1 | . 1 Melee Attacks . | . . Impact . | . . Slashing . | . . Piercing . | . . Sneak Attacks . | . . Combat Hostiles . | . . Follow-up Attacks . | . . Damage Inflicted 664 | 38 626 Guns 645 | 38 607 Cannons . | . . Explosions . | . . Melee . | . . Ramming 19 | . 19 Kinetic 215 | 10 205 Thermal 126 | . 126 Explosive . | . . Electromagnetic 304 | 28 276 Impact . | . . Slashing . | . . Piercing . | . . Highest Corruption . | . . Average Corruption . | . . Corruption Purged . | . . Overload Shots . | . . Overflow Damage . | . . Projectiles . | . . Explosions . | . . Melee . | . . Knockbacks 1 | . 1 Impact 1 | . 1 Kinetic . | . . Secondary . | . . Self-Inflicted Damage 3 | . 3 Shots . | . . Rammed 7 | . 7 Targets Rammed 10 | . 10 Kicked 3 | . 3 Crushed . | . . Highest Temperature 128 | . 128 Average Temperature 50 | . 50 Received Heat Transfer 591 | . 591 Siege Activations . | . . Robots Corrupted . | . . Combat Hostiles . | . . Parts Fried 3 | . 3 Impact Corruptions . | . . Robots Melted . | . . Combat Hostiles . | . . Parts Melted 1 | . 1 Heat Transferred 370 | . 370 Parts Sabotaged . | . . Parts Stolen . | . . Parts Stripped . | . . Power Chain Reactions . | . . Missiles Intercepted . | . . Alert | -11 -10 ------- Run | Scr Mat Peak Influence 160 | 5 160 Average Influence 50 | 3 53 Maximum Alert Level . | . . Low Security (%) 100 | 100 100 Level 1 . | . . Level 2 . | . . Level 3 . | . . Level 4 . | . . Level 5 . | . . High Security . | . . Max Security . | . . Squads Dispatched 1 | . 1 Investigation 1 | . 1 Extermination . | . . Reinforcement . | . . Assault . | . . Garrison . | . . Intercept . | . . Construction Impeded . | . . Haulers Reinforced . | . . Stealth | -11 -10 --------- Run | Scr Mat Distress Signals . | . . Communications Jammed . | . . Distress Signals . | . . Times Spotted 14 | . 14 Peak Tracking Total 5 | . 5 Tactical Retreats 1 | . 1 Traps | -11 -10 ------- Run | Scr Mat Traps Triggered . | . . Indirectly . | . . Trap Hack Attempts . | . . Triggered . | . . Disarmed . | . . Reprogrammed . | . . Reused . | . . Traps Extracted . | . . Installed . | . . Triggered . | . . Machines | -11 -10 ---------- Run | Scr Mat Machines Disabled . | . . Max in Single Turn . | . . Machines Sabotaged . | . . Garrisons Compromised . | . . Overloaded Fab Kills . | . . Fab Network Shutdowns . | . . Hacking | -11 -10 --------- Run | Scr Mat Machines Accessed 3 | . 3 Terminals 3 | . 3 Fabricators . | . . Repair Stations . | . . Recycling Units . | . . Scanalyzers . | . . Garrison Access . | . . Total Hacks 8 | . 8 Successful 5 | . 5 Failed 3 | . 3 Catastrophic . | . . Database Lockouts . | . . Manual 7 | . 7 Terminals 8 | . 8 Fabricators . | . . Repair Stations . | . . Recycling Units . | . . Scanalyzers . | . . Garrison Access . | . . Terminal Hacks 2 | . 2 Record 1 | . 1 Robot Analysis 1 | . 1 Fabricator Hacks . | . . Repair Station Hacks . | . . Recycling Unit Hacks . | . . Scanalyzer . | . . Garrison Access Hacks . | . . Unauthorized Hacks 3 | . 3 Terminals 3 | . 3 Track 1 | . 1 Botnet 2 | . 2 Fabricators . | . . Repair Stations . | . . Recycling Units . | . . Scanalyzers . | . . Garrison Access . | . . Data Cores Recovered . | . . Used . | . . Hacking Detections 2 | . 2 Full Trace Events 1 | . 1 Feedback Events . | . . Feedback Blocked . | . . Robot Schematics Acquired . | . . Robots Built . | . . Matter . | . . Time . | . . Total Robot Build Rating . | . . Part Schematics Acquired . | . . Parts Built . | . . Matter . | . . Time . | . . Total Part Build Rating . | . . Parts Repaired . | . . Time . | . . Parts Recycled . | . . Recycled Matter . | . . Retrieved Matter . | . . Retrieved Components . | . . Parts Scanalyzed . | . . Part Schematics Acquired . | . . Parts Damaged . | . . Bothacking | -11 -10 ------------ Run | Scr Mat Used RIF Installer . | . . Robots Hacked . | . . Non-combat . | . . Combat . | . . Robot Hacks Applied . | . . Relay Couplers Released . | . . Robots Rewired . | . . Allies Hacked . | . . Hacks Repelled . | . . Allies | -11 -10 -------- Run | Scr Mat Total Allies . | . . Largest Group . | . . Highest-Rated Group . | . . Highest-Rated Ally . | . . Total Orders . | . . Ally Attacks . | . . Total Damage . | . . Kills . | . . Allies Corrupted . | . . Allies Melted . | . . Intel | -11 -10 ------- Run | Scr Mat Robot Analysis Total 1 | . 1 Derelict Logs Recovered . | . . Drone Launches . | . . Drone Recoveries . | . . Exploration | -11 -10 ------------- Run | Scr Mat Turns Passed 482 | 25 457 Spaces Moved 249 | 13 236 Core 4 | . 4 Treads . | . . Legs 229 | . 229 Wheels 16 | 13 3 Hover . | . . Flight . | . . Fastest Speed 90 | 90 90 Average Speed 119 | 90 120 Slowest Speed 200 | 90 200 Overloaded Moves . | . . Propulsion Burnouts . | . . Robots Hopped . | . . Cave-ins Triggered . | . . Exploration Rate (%) 24 | 3 45 Regions Visited 1 Branch Regions . Pre-discovered Areas . | . . Known Exits Taken . | . . Unknown Exits Taken 1 | 1 . Scrap Searched . | . . Spaces Dug . | . . Terrain Destroyed . | . . Melee . | . . Projectile . | . . AOE . | . . Actions | -11 -10 --------- Run | Scr Mat Total 357 | 20 337 Wait 25 | . 25 Move 248 | 12 236 Hop . | . . Pick Up 8 | 1 7 Fast Attach 4 | . 4 Attach 5 | . 5 Detach . | . . Swap 4 | 4 . Drop 6 | 1 5 Fire 47 | 2 45 Melee . | . . Ram . | . . Kick 10 | . 10 Crush . | . . Escape Stasis . | . . Rewire . | . . Trap . | . . Miscellaneous . | . . Route ------- -11/Scrapyard -10/Materials (discovered 1 exit: [*Min]) History --------- Turn | Location | Event 12 | -11/Scrapyard | Discovered new exit (range 3) 26 | -11/Scrapyard | Entered Materials 255 | -10/Materials | Discovered new exit (range 16) 305 | -10/Materials | Build established: Mutant 423 | -10/Materials | Core integrity fell below 50% 472 | -10/Materials | Lost 8 parts (2p3n3w) 474 | -10/Materials | Core integrity fell below 20% 483 | -10/Materials | Destroyed by G-47 Trooper with Particle Gun Last Messages --------------- 00426_ Med. Laser destroyed. 00427_ Slammed into G-47 Trooper. 00427_ G-47 Trooper knocked back. 00428_ Kicked G-47 Trooper out of the way. 00429_ Acquired 47 matter. 00430_ Slammed into G-47 Trooper. 00432_ Kicked G-47 Trooper out of the way. 00434_ Slammed into G-47 Trooper. 00436_ Imp. Aluminum Leg permanently disabled. 00436_ Destabilizing: Short circuit. 00437_ Slammed into G-47 Trooper. 00438_ Broken Imp. Aluminum Leg destroyed. 00438_ Slammed into G-47 Trooper. 00441_ Ion Engine destroyed. 00461_ Dropped Sml. Storage Unit. 00461_ Acquired Lgt. Armor Plating. 00465_ Acquired Lgt. Assault Rifle. 00470_ G-47 Trooper suffers critical hit. 00470_ Destroyed Aluminum Leg. 00477_ G-34 Mercenary destroyed. Map ----- +----------------------------------------------------+ | ?????????????????????????????? | | ?????????????????????????????? | | ?????????????????????????????? | | ?????????????????????????????? | | ?????????????????????????????? | | ?????????????????????????????? | | ?????????????????????????????? | | ?????????????????????????????? | | ?????????????????????????????? | | ?????????????????????????????? | | ?????????????????????????????? | | ?????????????????????????????? | | ?????????????????????????????? | | ?????????????????????????????? | | ?????????????????????????????? | | ????????????????????????????? | | ######??????????????????????? | | # #??????????????????????? | | # #?????????????########## | | # #?????????????# / # | | # #???????####### # | | # ######### # # | | # # # ! # | | # # /gg ! # | | + + % # ! # | | # #% %##### # @! # | | ######%%%##??####### # | | ##### % % #????????# # | | #????????########## | | #?????????????????? | | #?????????????????? | | ###### #?????????????????? | | #????#######?????????????????? | | #????????????????????????????? | | #????????????????????????????? | | #????????????????????????????? | | #????????????????????????????? | | #????????????????????????????? | | #????????????????????????????? | | #????????????????????????????? | | #????????????????????????????? | | #????????????????????????????? | | ?????????????????????????????? | | ?????????????????????????????? | | ?????????????????????????????? | | ?????????????????????????????? | | ?????????????????????????????? | | ?????????????????????????????? | | ?????????????????????????????? | | ?????????????????????????????? | +----------------------------------------------------+ Best States ------------- Heat Dissipation 25 Energy Generation 10 Energy Capacity 250 Matter Stores 300 Matter Capacity 300 Sight Range 16 Terrain Scan Density 10 Armor Coverage 150 Evasion (%) 42 Item Schematics ----------------- None Robot Schematics ------------------ None Fabricated ------------ Nothing Alien Tech Used ----------------- None Achievements -------------- None Challenges ------------ None Game ------ Seed CoilPrecisionSource Manual? 0 Play Time 00:11:00 Cumulative 7.2 hours Start 2020.07.11 @ 15:38:43 End 2020.07.11 @ 15:48:27 Sessions 1 Manual Loads 0 Difficulty Rogue Special Mode None Game No. 16 Rogue 16 Adventurer 0 Explorer 0 Win Type - Total 0 Types 0/0/0/0/0/0/0 Lore% 18 Gallery% 12 Achievement% 14 Wizard Run 0 Options --------- ASCII 0 Keyboard 0 Movement Mouse Keybinds 0 Fullscreen 2 Font 24/Terminus Map View 76x50 Tactical HUD 1 Map Filters NONE Filters NONE Steam 1 RUN: a726ec3e-d75f-41af-9714-3ed627b5521f